fUSD/lending_fUSD_20260517
["ID","MTS","AMOUNT","RATE_DAILY","PERIOD"]
[422456057,1778967040000,-3842.85,0.00020548,2]
[422456054,1778967040000,-3842.83,0.00020548,2]
[422456056,1778967040000,-3842.85,0.00020548,2]
[422456053,1778967040000,-1402.54213512,0.000205,2]
[422456059,1778967040000,-1174.53,0.000206,2]
[422456055,1778967040000,-3842.85,0.00020548,2]
[422456061,1778967040000,-2500.0,0.00020712,2]
[422456052,1778967040000,-4609.0,0.00020493,2]
[422456051,1778967040000,-851.9,0.00020381,2]
[422456062,1778967040000,-950.0,0.00020712,2]
[422456050,1778967040000,-2781.82699784,0.00020341,2]
[422456041,1778967040000,-740.0,0.0002,2]
[422456080,1778967040000,-11822.65183842,0.00021056,2]
[422456049,1778967040000,-1402.54213512,0.000203,2]
[422456063,1778967040000,-1350.0,0.00020712,7]
[422456060,1778967040000,-1402.54213512,0.000207,2]
[422456067,1778967040000,-999.02,0.00020951,2]
[422456074,1778967040000,-577.0,0.00021,2]
[422456078,1778967040000,-213.0,0.00021,2]
[422456073,1778967040000,-151.0,0.00021,2]
[422456071,1778967040000,-418.0,0.00021,2]
[422456064,1778967040000,-202.19,0.00020816,2]
[422456072,1778967040000,-206.0,0.00021,2]
[422456077,1778967040000,-212.0,0.00021,2]
[422456075,1778967040000,-740.0,0.00021,2]
[422456069,1778967040000,-153.0,0.00021,2]
[422456066,1778967040000,-1393.0,0.00020908,2]
[422456070,1778967040000,-159.62060025,0.00021,2]
[422456088,1778967040000,-500.0,0.00021435,2]
[422456068,1778967040000,-274.0,0.00021,2]
[422456065,1778967040000,-2884.75459676,0.00020889,2]
[422456076,1778967040000,-525.17782738,0.00021,2]
[422456149,1778967041000,-171.99539503,0.00022392,3]
[422456163,1778967041000,-1542.0,0.00022477,2]
[422456151,1778967041000,-151.09078875,0.00022407,2]
[422456153,1778967041000,-1573.07,0.00022466,2]
[422456156,1778967041000,-1550.0,0.00022477,2]
[422456154,1778967041000,-1550.0,0.00022477,2]
[422456155,1778967041000,-1550.0,0.00022477,2]
[422456160,1778967041000,-1550.0,0.00022477,2]
[422456159,1778967041000,-1550.0,0.00022477,2]
[422456161,1778967041000,-1550.0,0.00022477,2]
[422456158,1778967041000,-1550.0,0.00022477,2]
[422456152,1778967041000,-1755.33,0.00022466,2]
[422456157,1778967041000,-1550.0,0.00022477,2]
[422456170,1778967041000,-600.0,0.00022486,2]
[422456172,1778967041000,-600.0,0.00022486,2]
[422456162,1778967041000,-1550.0,0.00022477,2]
[422456174,1778967041000,-214.0,0.00022486,2]
[422456173,1778967041000,-600.0,0.00022486,2]
[422456164,1778967041000,-477.8,0.00022484,2]
[422456165,1778967041000,-600.0,0.00022486,2]
[422456167,1778967041000,-600.0,0.00022486,2]
[422456166,1778967041000,-600.0,0.00022486,2]
[422456168,1778967041000,-600.0,0.00022486,2]
[422456171,1778967041000,-600.0,0.00022486,2]
[422456169,1778967041000,-600.0,0.00022486,2]
[422456177,1778967041000,-171.50810787,0.00022603,2]
[422456150,1778967041000,-151.09078876,0.00022407,2]
[422456187,1778967041000,-2000.0,0.00022641,2]
[422456175,1778967041000,-3182.0,0.00022542,2]
[422456148,1778967041000,-851.9,0.00022353,2]
[422456131,1778967041000,-2000.0,0.00022258,2]
[422456140,1778967041000,-2000.0,0.00022258,2]
[422456178,1778967041000,-477.8,0.00022634,2]
[422456118,1778967041000,-1613.0,0.00022091,2]
[422456119,1778967041000,-2000.0,0.00022137,2]
[422456117,1778967041000,-11822.65183842,0.00022004,2]
[422456120,1778967041000,-2000.0,0.00022137,2]
[422456133,1778967041000,-2000.0,0.00022258,2]
[422456125,1778967041000,-2000.0,0.00022137,2]
[422456132,1778967041000,-2000.0,0.00022258,2]
[422456127,1778967041000,-2000.0,0.00022137,2]
[422456129,1778967041000,-2000.0,0.00022137,2]
[422456123,1778967041000,-2000.0,0.00022137,2]
[422456122,1778967041000,-2000.0,0.00022137,2]
[422456121,1778967041000,-2000.0,0.00022137,2]
[422456124,1778967041000,-2000.0,0.00022137,2]
[422456130,1778967041000,-2000.0,0.00022258,2]
[422456128,1778967041000,-2000.0,0.00022137,2]
[422456126,1778967041000,-2000.0,0.00022137,2]
[422456134,1778967041000,-2000.0,0.00022258,2]
[422456136,1778967041000,-2000.0,0.00022258,2]
[422456146,1778967041000,-2000.0,0.00022258,2]
[422456135,1778967041000,-2000.0,0.00022258,2]
[422456145,1778967041000,-2000.0,0.00022258,2]
[422456147,1778967041000,-1316.0,0.00022258,2]
[422456137,1778967041000,-2000.0,0.00022258,2]
[422456139,1778967041000,-2000.0,0.00022258,2]
[422456138,1778967041000,-2000.0,0.00022258,2]
[422456141,1778967041000,-2000.0,0.00022258,2]
[422456144,1778967041000,-2000.0,0.00022258,2]
[422456142,1778967041000,-2000.0,0.00022258,2]
[422456143,1778967041000,-2000.0,0.00022258,2]
[422456176,1778967041000,-477.8,0.00022559,2]
[422456179,1778967041000,-2000.0,0.00022641,2]
[422456182,1778967041000,-2000.0,0.00022641,2]
[422456221,1778967041000,-169.17,0.00023692,2]
[422456216,1778967041000,-284.625,0.00023637,2]
[422456215,1778967041000,-151.0,0.00023634,7]
[422456219,1778967041000,-1360.657,0.00023637,2]
[422456217,1778967041000,-1281.822,0.00023637,2]
[422456220,1778967041000,-756.128,0.00023637,2]
[422456218,1778967041000,-1242.749,0.00023637,2]
[422456233,1778967041000,-206.0,0.00024,2]
[422456223,1778967041000,-169.17,0.00023692,2]
[422456222,1778967041000,-169.17,0.00023692,2]
[422456224,1778967041000,-1486.69,0.00023697,2]
[422456225,1778967041000,-999.29351013,0.00023789,2]
[422456228,1778967041000,-11822.65183842,0.000239,2]
[422456227,1778967041000,-262.18,0.00023838,2]
[422456231,1778967041000,-274.0,0.00024,2]
[422456229,1778967041000,-171.50810787,0.00023973,2]
[422456226,1778967041000,-28168.0,0.000238,2]
[422456230,1778967041000,-163.14,0.0002399,2]
[422456232,1778967041000,-418.0,0.00024,2]
[422456235,1778967041000,-577.0,0.00024,2]
[422456237,1778967041000,-212.0,0.00024,2]
[422456239,1778967041000,-385.86400942,0.0002417,2]
[422456238,1778967041000,-213.0,0.00024,2]
[422456240,1778967041000,-524.40294489,0.00024174,2]
[422456236,1778967041000,-740.0,0.00024,2]
[422456242,1778967041000,-18987.01441539,0.00024318,21]
[422456241,1778967041000,-1192.0,0.00024202,2]
[422456243,1778967041000,-851.9,0.00024324,2]
[422456188,1778967041000,-2000.0,0.00022641,2]
[422456213,1778967041000,-477.8,0.00023533,2]
[422456211,1778967041000,-477.8,0.00023383,2]
[422456234,1778967041000,-151.13147767,0.00024,2]
[422456212,1778967041000,-477.8,0.00023458,2]
[422456214,1778967041000,-477.86500783,0.00023608,2]
[422456189,1778967041000,-477.8,0.00022709,2]
[422456180,1778967041000,-2000.0,0.00022641,2]
[422456181,1778967041000,-2000.0,0.00022641,2]
[422456185,1778967041000,-2000.0,0.00022641,2]
[422456183,1778967041000,-2000.0,0.00022641,2]
[422456184,1778967041000,-2000.0,0.00022641,2]
[422456186,1778967041000,-2000.0,0.00022641,2]
[422456191,1778967041000,-477.8,0.00022858,2]
[422456201,1778967041000,-740.0,0.00023,2]
[422456190,1778967041000,-477.8,0.00022784,2]
[422456203,1778967041000,-1026.0,0.00023,2]
[422456193,1778967041000,-477.8,0.00022933,2]
[422456192,1778967041000,-1174.53,0.000229,7]
[422456202,1778967041000,-212.0,0.00023,2]
[422456199,1778967041000,-151.0,0.00023,2]
[422456210,1778967041000,-477.8,0.00023308,2]
[422456195,1778967041000,-274.0,0.00023,2]
[422456205,1778967041000,-477.8,0.00023008,2]
[422456208,1778967041000,-477.8,0.00023233,2]
[422456207,1778967041000,-477.8,0.00023158,2]
[422456206,1778967041000,-477.8,0.00023083,2]
[422456204,1778967041000,-213.0,0.00023,2]
[422456209,1778967041000,-171.50810787,0.00023288,2]
[422456196,1778967041000,-418.0,0.00023,2]
[422456197,1778967041000,-363.0,0.00023,30]
[422456194,1778967041000,-11822.65183842,0.00022952,2]
[422456200,1778967041000,-577.0,0.00023,2]
[422456198,1778967041000,-206.0,0.00023,2]
[422456288,1778967042000,-150.0,0.00024384,2]
[422456285,1778967042000,-162.13449277,0.00024384,2]
[422456284,1778967042000,-261.82652302,0.00024384,2]
[422456281,1778967042000,-150.0,0.00024384,2]
[422456280,1778967042000,-250.0,0.00024384,2]
[422456283,1778967042000,-150.0,0.00024384,2]
[422456279,1778967042000,-150.0,0.00024384,2]
[422456277,1778967042000,-150.0,0.00024384,2]
[422456278,1778967042000,-250.0,0.00024384,2]
[422456275,1778967042000,-166.38904159,0.00024384,2]
[422456287,1778967042000,-176.00420823,0.00024384,2]
[422456290,1778967042000,-150.0,0.00024384,2]
[422456282,1778967042000,-250.0,0.00024384,2]
[422456289,1778967042000,-150.0,0.00024384,2]
[422456301,1778967042000,-150.0,0.00024384,2]
[422456300,1778967042000,-500.0,0.00024384,2]
[422456292,1778967042000,-268.87677318,0.00024384,2]
[422456299,1778967042000,-553.49084739,0.00024384,2]
[422456295,1778967042000,-513.31108128,0.00024384,2]
[422456298,1778967042000,-500.0,0.00024384,2]
[422456296,1778967042000,-500.0,0.00024384,2]
[422456294,1778967042000,-500.0,0.00024384,2]
[422456297,1778967042000,-500.0,0.00024384,2]
[422456293,1778967042000,-500.0,0.00024384,2]
[422456307,1778967042000,-588.0,0.00024384,2]
[422456313,1778967042000,-588.0,0.00024384,2]
[422456309,1778967042000,-588.0,0.00024384,2]
[422456314,1778967042000,-588.0,0.00024384,2]
[422456286,1778967042000,-150.0,0.00024384,2]
[422456291,1778967042000,-150.0,0.00024384,2]
[422456276,1778967042000,-150.0,0.00024384,2]
[422456247,1778967042000,-150.0,0.00024384,2]
[422456269,1778967042000,-150.0,0.00024384,2]
[422456304,1778967042000,-150.0,0.00024384,2]
[422456246,1778967042000,-150.0,0.00024384,2]
[422456244,1778967042000,-150.0,0.00024384,2]
[422456245,1778967042000,-241.09524551,0.00024384,2]
[422456249,1778967042000,-274.34450256,0.00024384,2]
[422456257,1778967042000,-500.0,0.00024384,2]
[422456258,1778967042000,-500.0,0.00024384,2]
[422456259,1778967042000,-500.0,0.00024384,2]
[422456248,1778967042000,-150.0,0.00024384,2]
[422456260,1778967042000,-500.0,0.00024384,2]
[422456253,1778967042000,-500.0,0.00024384,2]
[422456250,1778967042000,-500.0,0.00024384,2]
[422456252,1778967042000,-500.0,0.00024384,2]
[422456256,1778967042000,-500.0,0.00024384,2]
[422456255,1778967042000,-500.0,0.00024384,2]
[422456251,1778967042000,-500.0,0.00024384,2]
[422456254,1778967042000,-500.0,0.00024384,2]
[422456261,1778967042000,-500.0,0.00024384,2]
[422456262,1778967042000,-500.0,0.00024384,2]
[422456263,1778967042000,-500.0,0.00024384,2]
[422456270,1778967042000,-500.0,0.00024384,2]
[422456272,1778967042000,-386.063269,0.00024384,2]
[422456265,1778967042000,-500.0,0.00024384,2]
[422456271,1778967042000,-150.0,0.00024384,2]
[422456268,1778967042000,-500.0,0.00024384,2]
[422456266,1778967042000,-500.0,0.00024384,2]
[422456273,1778967042000,-213.52501256,0.00024384,2]
[422456267,1778967042000,-500.0,0.00024384,2]
[422456264,1778967042000,-637.25809725,0.00024384,2]
[422456274,1778967042000,-150.0,0.00024384,2]
[422456312,1778967042000,-588.0,0.00024384,2]
[422456306,1778967042000,-588.0,0.00024384,2]
[422456308,1778967042000,-588.0,0.00024384,2]
[422456341,1778967042000,-1932.0,0.00024384,2]
[422456343,1778967042000,-1932.0,0.00024384,2]
[422456355,1778967042000,-500.0,0.00024384,2]
[422456352,1778967042000,-1932.0,0.00024384,2]
[422456347,1778967042000,-1932.0,0.00024384,2]
[422456344,1778967042000,-1932.0,0.00024384,2]
[422456346,1778967042000,-500.0,0.00024384,2]
[422456354,1778967042000,-1932.0,0.00024384,2]
[422456349,1778967042000,-1932.0,0.00024384,2]
[422456348,1778967042000,-500.0,0.00024384,2]
[422456351,1778967042000,-503.52293091,0.00024384,2]
[422456357,1778967042000,-500.0,0.00024384,2]
[422456358,1778967042000,-500.0,0.00024384,2]
[422456368,1778967042000,-500.0,0.00024384,2]
[422456345,1778967042000,-1932.0,0.00024384,2]
[422456369,1778967042000,-500.0,0.00024384,2]
[422456359,1778967042000,-500.0,0.00024384,2]
[422456361,1778967042000,-500.0,0.00024384,2]
[422456367,1778967042000,-500.0,0.00024384,2]
[422456360,1778967042000,-1932.0,0.00024384,2]
[422456362,1778967042000,-500.0,0.00024384,2]
[422456365,1778967042000,-1932.0,0.00024384,2]
[422456363,1778967042000,-500.0,0.00024384,2]
[422456364,1778967042000,-500.0,0.00024384,2]
[422456370,1778967042000,-1932.0,0.00024384,2]
[422456371,1778967042000,-530.77702258,0.00024384,2]
[422456375,1778967042000,-1932.0,0.00024384,2]
[422456374,1778967042000,-1932.0,0.00024384,2]
[422456373,1778967042000,-1932.0,0.00024384,2]
[422456372,1778967042000,-1932.0,0.00024384,2]
[422456366,1778967042000,-500.0,0.00024384,2]
[422456356,1778967042000,-1932.0,0.00024384,2]
[422456303,1778967042000,-150.0,0.00024384,2]
[422456338,1778967042000,-1932.0,0.00024384,2]
[422456342,1778967042000,-200.0,0.00024384,2]
[422456376,1778967042000,-1932.0,0.00024384,2]
[422456305,1778967042000,-299.41353446,0.00024384,2]
[422456302,1778967042000,-242.6683652,0.00024384,2]
[422456310,1778967042000,-588.0,0.00024384,2]
[422456311,1778967042000,-588.0,0.00024384,2]
[422456316,1778967042000,-588.0,0.00024384,2]
[422456315,1778967042000,-588.0,0.00024384,2]
[422456321,1778967042000,-588.0,0.00024384,2]
[422456317,1778967042000,-588.0,0.00024384,2]
[422456326,1778967042000,-588.0,0.00024384,2]
[422456320,1778967042000,-588.0,0.00024384,2]
[422456327,1778967042000,-588.0,0.00024384,2]
[422456323,1778967042000,-150.0,0.00024384,2]
[422456324,1778967042000,-150.0,0.00024384,2]
[422456318,1778967042000,-588.0,0.00024384,2]
[422456325,1778967042000,-201.93880536,0.00024384,2]
[422456322,1778967042000,-150.0,0.00024384,2]
[422456337,1778967042000,-1932.0,0.00024384,2]
[422456335,1778967042000,-1932.0,0.00024384,2]
[422456334,1778967042000,-284.63445457,0.00024384,2]
[422456329,1778967042000,-588.0,0.00024384,2]
[422456333,1778967042000,-608.52312237,0.00024384,2]
[422456340,1778967042000,-1932.0,0.00024384,2]
[422456332,1778967042000,-588.0,0.00024384,2]
[422456336,1778967042000,-1932.0,0.00024384,2]
[422456330,1778967042000,-588.0,0.00024384,2]
[422456331,1778967042000,-588.0,0.00024384,2]
[422456328,1778967042000,-588.0,0.00024384,2]
[422456319,1778967042000,-588.0,0.00024384,2]
[422456339,1778967042000,-150.0,0.00024384,2]
[422456416,1778967043000,-540.0,0.00024384,2]
[422456421,1778967043000,-540.0,0.00024384,2]
[422456415,1778967043000,-540.0,0.00024384,2]
[422456422,1778967043000,-540.0,0.00024384,2]
[422456418,1778967043000,-540.0,0.00024384,2]
[422456414,1778967043000,-540.0,0.00024384,2]
[422456413,1778967043000,-540.0,0.00024384,2]
[422456419,1778967043000,-540.0,0.00024384,2]
[422456420,1778967043000,-540.0,0.00024384,2]
[422456417,1778967043000,-540.0,0.00024384,2]
[422456425,1778967043000,-540.0,0.00024384,2]
[422456430,1778967043000,-540.0,0.00024384,2]
[422456423,1778967043000,-540.0,0.00024384,2]
[422456426,1778967043000,-540.0,0.00024384,2]
[422456451,1778967043000,-679.41,0.00024658,2]
[422456428,1778967043000,-540.0,0.00024384,2]
[422456427,1778967043000,-540.0,0.00024384,2]
[422456438,1778967043000,-2000.0,0.0002441,2]
[422456432,1778967043000,-547.93553405,0.00024384,2]
[422456433,1778967043000,-2000.0,0.0002441,2]
[422456439,1778967043000,-2000.0,0.0002441,2]
[422456431,1778967043000,-540.0,0.00024384,2]
[422456434,1778967043000,-2000.0,0.0002441,2]
[422456437,1778967043000,-2000.0,0.0002441,2]
[422456436,1778967043000,-2000.0,0.0002441,2]
[422456435,1778967043000,-2000.0,0.0002441,2]
[422456452,1778967043000,-1000.0,0.00024658,2]
[422456441,1778967043000,-2000.0,0.0002441,2]
[422456424,1778967043000,-540.0,0.00024384,2]
[422456429,1778967043000,-540.0,0.00024384,2]
[422456412,1778967043000,-540.0,0.00024384,2]
[422456393,1778967043000,-500.0,0.00024384,2]
[422456405,1778967043000,-500.0,0.00024384,2]
[422456440,1778967043000,-2000.0,0.0002441,2]
[422456384,1778967043000,-500.0,0.00024384,2]
[422456382,1778967043000,-394.72312989,0.00024384,2]
[422456379,1778967043000,-500.0,0.00024384,2]
[422456377,1778967043000,-1932.0,0.00024384,2]
[422456380,1778967043000,-500.0,0.00024384,2]
[422456378,1778967043000,-1940.55470496,0.00024384,2]
[422456387,1778967043000,-500.0,0.00024384,2]
[422456397,1778967043000,-500.0,0.00024384,2]
[422456389,1778967043000,-500.0,0.00024384,2]
[422456388,1778967043000,-500.0,0.00024384,2]
[422456386,1778967043000,-150.0,0.00024384,2]
[422456390,1778967043000,-500.0,0.00024384,2]
[422456398,1778967043000,-500.0,0.00024384,2]
[422456400,1778967043000,-500.0,0.00024384,2]
[422456396,1778967043000,-174.08613198,0.00024384,2]
[422456392,1778967043000,-500.0,0.00024384,2]
[422456394,1778967043000,-324.45353796,0.00024384,2]
[422456395,1778967043000,-500.0,0.00024384,2]
[422456399,1778967043000,-500.0,0.00024384,2]
[422456401,1778967043000,-500.0,0.00024384,2]
[422456403,1778967043000,-500.0,0.00024384,2]
[422456404,1778967043000,-500.0,0.00024384,2]
[422456402,1778967043000,-500.0,0.00024384,2]
[422456410,1778967043000,-540.0,0.00024384,2]
[422456406,1778967043000,-500.0,0.00024384,2]
[422456407,1778967043000,-176.93209112,0.00024384,2]
[422456408,1778967043000,-150.0,0.00024384,2]
[422456409,1778967043000,-540.0,0.00024384,2]
[422456411,1778967043000,-540.0,0.00024384,2]
[422456391,1778967043000,-500.0,0.00024384,2]
[422456381,1778967043000,-500.0,0.00024384,2]
[422456443,1778967043000,-2000.0,0.0002441,2]
[422456442,1778967043000,-2000.0,0.0002441,2]
[422456480,1778967043000,-150.0,0.00024879,2]
[422456482,1778967043000,-150.0,0.00024879,2]
[422456486,1778967043000,-150.0,0.00024879,2]
[422456489,1778967043000,-150.0,0.00024879,2]
[422456487,1778967043000,-202.73185857,0.00024879,2]
[422456490,1778967043000,-1174.53,0.000249,7]
[422456488,1778967043000,-262.09781016,0.00024879,4]
[422456492,1778967043000,-150.0,0.00024927,4]
[422456481,1778967043000,-150.0,0.00024879,2]
[422456484,1778967043000,-150.0,0.00024879,2]
[422456485,1778967043000,-150.0,0.00024879,2]
[422456494,1778967043000,-150.0,0.00024935,4]
[422456504,1778967043000,-292.39833639,0.00025,2]
[422456493,1778967043000,-150.0,0.00024934,4]
[422456491,1778967043000,-262.09781016,0.00024907,4]
[422456496,1778967043000,-150.0,0.00024936,4]
[422456497,1778967043000,-262.09781016,0.00024963,4]
[422456503,1778967043000,-150.0,0.00024995,4]
[422456499,1778967043000,-150.0,0.00024988,4]
[422456498,1778967043000,-150.0,0.00024975,4]
[422456501,1778967043000,-262.09781016,0.00024991,4]
[422456500,1778967043000,-150.0,0.0002499,4]
[422456502,1778967043000,-150.0,0.00024992,4]
[422456507,1778967043000,-223.16459096,0.00025,2]
[422456509,1778967043000,-746.0,0.00025,2]
[422456508,1778967043000,-579.96426354,0.00025,2]
[422456510,1778967043000,-213.90251706,0.00025,2]
[422456511,1778967043000,-227.89157137,0.00025,2]
[422456506,1778967043000,-421.27724586,0.00025,2]
[422456444,1778967043000,-2000.0,0.0002441,2]
[422456495,1778967043000,-262.09781016,0.00024935,4]
[422456483,1778967043000,-150.0,0.00024879,2]
[422456505,1778967043000,-465.51149616,0.00025,2]
[422456475,1778967043000,-922.0,0.00024658,2]
[422456459,1778967043000,-922.0,0.00024658,2]
[422456461,1778967043000,-922.0,0.00024658,2]
[422456458,1778967043000,-922.0,0.00024658,2]
[422456454,1778967043000,-922.0,0.00024658,2]
[422456457,1778967043000,-922.0,0.00024658,2]
[422456455,1778967043000,-922.0,0.00024658,2]
[422456460,1778967043000,-922.0,0.00024658,2]
[422456453,1778967043000,-171.50810787,0.00024658,2]
[422456449,1778967043000,-2000.0,0.0002441,2]
[422456446,1778967043000,-2000.0,0.0002441,2]
[422456450,1778967043000,-5530.0,0.000245,3]
[422456448,1778967043000,-2000.0,0.0002441,2]
[422456447,1778967043000,-2000.0,0.0002441,2]
[422456476,1778967043000,-922.0,0.00024658,2]
[422456456,1778967043000,-922.0,0.00024658,2]
[422456464,1778967043000,-922.0,0.00024658,2]
[422456445,1778967043000,-2000.0,0.0002441,2]
[422456473,1778967043000,-922.0,0.00024658,2]
[422456466,1778967043000,-922.0,0.00024658,2]
[422456477,1778967043000,-926.0,0.00024658,2]
[422456472,1778967043000,-922.0,0.00024658,2]
[422456474,1778967043000,-922.0,0.00024658,2]
[422456470,1778967043000,-922.0,0.00024658,2]
[422456469,1778967043000,-922.0,0.00024658,2]
[422456471,1778967043000,-922.0,0.00024658,2]
[422456478,1778967043000,-150.0,0.00024879,2]
[422456479,1778967043000,-150.0,0.00024879,2]
[422456468,1778967043000,-922.0,0.00024658,2]
[422456463,1778967043000,-922.0,0.00024658,2]
[422456465,1778967043000,-922.0,0.00024658,2]
[422456462,1778967043000,-922.0,0.00024658,2]
[422456467,1778967043000,-922.0,0.00024658,2]
[422456552,1778967044000,-150.0,0.00025259,4]
[422456553,1778967044000,-150.0,0.00025261,4]
[422456558,1778967044000,-150.0,0.00025288,4]
[422456557,1778967044000,-150.0,0.00025274,4]
[422456555,1778967044000,-262.09781016,0.0002527,4]
[422456551,1778967044000,-262.09781016,0.00025242,4]
[422456546,1778967044000,-150.0,0.00025211,4]
[422456561,1778967044000,-5530.0,0.000253,5]
[422456550,1778967044000,-150.0,0.00025225,4]
[422456548,1778967044000,-262.09781016,0.00025215,4]
[422456559,1778967044000,-262.09781016,0.00025298,4]
[422456549,1778967044000,-150.0,0.00025218,4]
[422456556,1778967044000,-150.0,0.00025274,4]
[422456560,1778967044000,-465.51149616,0.000253,2]
[422456554,1778967044000,-150.0,0.00025266,4]
[422456570,1778967044000,-150.0,0.00025356,4]
[422456563,1778967044000,-150.0,0.00025313,4]
[422456569,1778967044000,-262.09781016,0.00025354,4]
[422456565,1778967044000,-262.09781016,0.00025326,4]
[422456573,1778967044000,-150.0,0.00025377,4]
[422456567,1778967044000,-150.0,0.0002534,4]
[422456564,1778967044000,-150.0,0.00025322,4]
[422456571,1778967044000,-150.0,0.00025367,4]
[422456566,1778967044000,-150.0,0.00025331,4]
[422456568,1778967044000,-171.50810787,0.00025342,2]
[422456574,1778967044000,-161.0,0.00025382,3]
[422456572,1778967044000,-150.0,0.00025375,4]
[422456575,1778967044000,-262.09781016,0.00025382,4]
[422456577,1778967044000,-150.0,0.00025404,4]
[422456588,1778967044000,-150.0,0.00025476,4]
[422456562,1778967044000,-150.0,0.00025308,4]
[422456545,1778967044000,-279.30719,0.00025208,2]
[422456587,1778967044000,-262.09781016,0.00025466,4]
[422456540,1778967044000,-305.660067,0.00025208,2]
[422456517,1778967044000,-150.0,0.00025049,4]
[422456518,1778967044000,-150.0,0.0002507,4]
[422456512,1778967044000,-262.09781016,0.00025019,4]
[422456519,1778967044000,-262.09781016,0.00025075,4]
[422456515,1778967044000,-150.0,0.00025045,4]
[422456513,1778967044000,-150.0,0.00025022,4]
[422456514,1778967044000,-150.0,0.00025042,4]
[422456516,1778967044000,-262.09781016,0.00025047,4]
[422456520,1778967044000,-150.0,0.00025096,4]
[422456531,1778967044000,-150.0,0.00025162,4]
[422456523,1778967044000,-150.0,0.00025105,4]
[422456522,1778967044000,-262.09781016,0.00025103,4]
[422456524,1778967044000,-150.0,0.0002511,4]
[422456533,1778967044000,-262.09781016,0.00025187,4]
[422456526,1778967044000,-150.0,0.00025118,4]
[422456528,1778967044000,-150.0,0.0002515,4]
[422456529,1778967044000,-150.0,0.00025156,4]
[422456544,1778967044000,-279.30719,0.00025208,2]
[422456543,1778967044000,-279.30719,0.00025208,2]
[422456537,1778967044000,-165.407147,0.00025208,2]
[422456541,1778967044000,-305.660067,0.00025208,2]
[422456538,1778967044000,-305.660067,0.00025208,2]
[422456535,1778967044000,-150.0,0.00025205,4]
[422456547,1778967044000,-150.0,0.00025213,4]
[422456536,1778967044000,-151.0,0.00025208,2]
[422456542,1778967044000,-279.30719,0.00025208,2]
[422456534,1778967044000,-150.0,0.000252,4]
[422456525,1778967044000,-158.71,0.00025113,2]
[422456527,1778967044000,-262.09781016,0.00025131,4]
[422456530,1778967044000,-262.09781016,0.00025159,4]
[422456532,1778967044000,-150.0,0.00025165,4]
[422456539,1778967044000,-305.660067,0.00025208,2]
[422456576,1778967044000,-150.0,0.00025387,4]
[422456521,1778967044000,-150.0,0.00025101,4]
[422456578,1778967044000,-262.09781016,0.0002541,4]
[422456617,1778967044000,-150.0,0.00025556,4]
[422456620,1778967044000,-150.0,0.00025584,4]
[422456619,1778967044000,-262.09781016,0.00025578,4]
[422456629,1778967044000,-150.0,0.00025653,4]
[422456618,1778967044000,-150.0,0.00025571,4]
[422456628,1778967044000,-150.0,0.00025642,4]
[422456622,1778967044000,-150.0,0.00025598,4]
[422456621,1778967044000,-150.0,0.00025594,4]